bitfinex/quotes_ETHUSD_20260304
["timestamp","ask_amount","ask_price","bid_price","bid_amount"]
[1772596707903,1.27564037,1959.8,1958.9,5.58907219]
[1772596708805,0.16967251,1959.7,1958.3,5.58907219]
[1772596709006,0.16967251,1959.7,1958.5,5.58907219]
[1772596709206,1.27564037,1959.8,1958.5,5.58907219]
[1772596709207,1.99685494,1959.6,1958.5,5.58907219]
[1772596710126,1.27583567,1959.5,1958.5,5.58907219]
[1772596710325,1.27583567,1959.5,1958.5,6.86555441]
[1772596714401,0.001,1959.4,1958.5,6.86555441]
[1772596715001,0.001,1959.4,1958.6,5.58907219]
[1772596715218,0.17239857,1959.4,1958.6,5.58907219]
[1772596715818,0.17139857,1959.3,1958.4,5.58907219]
[1772596716816,1.27603103,1959.2,1958.4,5.58907219]
[1772596720335,1.27603103,1959.2,1958.4,6.86560839]
[1772596722839,0.001,1959.4,1958.5,5.58907219]
[1772596723010,1.27576997,1959.7,1958.8,5.58907219]
[1772596723210,1.27576997,1959.7,1959.0,5.58857219]
[1772596724220,1.43621674,1959.7,1959.0,5.58857219]
[1772596724426,0.16044677,1959.6,1958.7,5.58857219]
[1772596724925,1.27583567,1959.5,1958.7,6.8649097]
[1772596727640,1.27573462,1959.7,1958.7,6.8649097]
[1772596728546,1.27573462,1959.7,1958.9,5.58857219]
[1772596729034,5.10357461,1959.8,1959.1,5.58857219]
[1772596730345,0.13773048,1959.7,1958.8,5.58857219]
[1772596731059,1.27577056,1959.6,1958.8,6.86483329]
[1772596731343,1.40945177,1959.6,1958.8,5.58857219]
[1772596731648,1.40945177,1959.6,1958.8,6.8648573]
[1772596733152,5.22927408,1959.8,1958.8,6.8648573]
[1772596734943,5.10357461,1959.8,1959.0,5.58857219]
[1772596735158,5.10357461,1959.8,1959.1,1.27609616]
[1772596735320,5.10357461,1959.8,1959.2,5.58857219]
[1772596736076,1.27664037,1959.8,1959.2,5.58857219]
[1772596736427,1.39044543,1959.8,1959.0,8.40068294]
[1772596737247,1.39044543,1959.8,1959.1,5.58857219]
[1772596738650,1.27664037,1959.8,1959.1,5.58857219]
[1772596739650,0.001,1959.8,1959.2,6.86460322]
[1772596742123,1.27529716,1960.4,1959.5,5.58807219]
[1772596742325,1.27529716,1960.4,1959.7,5.58807219]
[1772596742858,1.27517033,1960.6,1959.7,5.58807219]
[1772596743224,1.27503962,1960.8,1959.8,5.58807219]
[1772596744124,1.27503962,1960.8,1959.8,8.40267919]
[1772596744125,0.08265808,1960.8,1959.8,8.40267919]
[1772596745126,0.08265808,1960.8,1959.8,2.814607]
[1772596745326,0.08265808,1960.8,1959.9,5.58807219]
[1772596746126,1.27505482,1960.7,1960.1,5.58807219]
[1772596748164,0.07457548,1961.0,1960.0,1.2755102]
[1772596748165,1.27492477,1960.9,1960.2,6.86345225]
[1772596749849,1.33736429,1961.0,1960.2,6.86345225]
[1772596750155,0.00521422,1961.1,1960.2,6.86345225]
[1772596750363,0.00521422,1961.1,1960.4,5.58807219]
[1772596750947,0.05964737,1961.1,1960.4,5.58807219]
[1772596752845,1.28005435,1961.1,1960.5,6.86325709]
[1772596753472,0.00521422,1961.1,1960.5,6.86325709]
[1772596754249,0.001,1961.0,1960.5,6.86325709]
[1772596754857,0.00521422,1961.1,1960.7,5.58757219]
[1772596755156,5.13659274,1961.9,1960.7,5.58757219]
[1772596755353,1.27433989,1961.8,1960.8,5.58757219]
[1772596755876,1.27401518,1962.3,1961.1,5.58757219]
[1772596756095,0.03547821,1961.9,1961.2,5.58757219]
[1772596756376,1.27401518,1962.3,1961.2,5.58757219]
[1772596756377,0.03547821,1962.2,1961.2,5.58757219]
[1772596756946,1.27414504,1962.1,1961.4,5.58757219]
[1772596757764,0.03145409,1962.0,1961.1,5.58757219]
[1772596758245,0.02826778,1961.9,1961.1,5.58757219]
[1772596758450,0.02826778,1961.9,1960.9,5.58757219]
[1772596758976,1.27433989,1961.8,1961.1,5.58757219]
[1772596761088,1.27433989,1961.8,1961.1,6.86231798]
[1772596761446,1.27433989,1961.8,1961.3,5.58757219]
[1772596761951,0.01290072,1961.7,1960.8,5.58757219]
[1772596762593,1.31343919,1961.7,1960.8,5.58757219]
[1772596763087,1.27446982,1961.6,1960.8,5.58757219]
[1772596763288,0.00887823,1961.5,1960.8,5.58757219]
[1772596765179,1.27459977,1961.4,1960.8,5.58757219]
[1772596765998,1.27459977,1961.4,1960.5,5.58757219]
[1772596766794,1.27459977,1961.4,1960.7,6.28757219]
[1772596768495,1.27459977,1961.4,1960.8,5.58757219]
[1772596769207,1.27533989,1961.8,1960.8,6.86250235]
[1772596770209,0.001,1961.8,1961.3,5.58757219]
[1772596773170,0.001,1961.8,1961.3,6.86222892]
[1772596774073,4.24861858,1962.3,1961.6,5.58707219]
[1772596774074,2.94806099,1962.3,1961.6,5.58707219]
[1772596774273,1.27406099,1962.3,1961.6,5.58707219]
[1772596776177,1.27406099,1962.3,1961.8,5.58707219]
[1772596777304,1.43000044,1962.4,1961.8,5.58707219]
[1772596779002,1.42995715,1962.4,1961.9,5.58707219]
[1772596779173,1.42795715,1962.4,1961.9,5.58707219]
[1772596780577,1.42795715,1962.4,1961.4,5.58707219]
[1772596780578,2.72849562,1962.4,1961.4,5.58707219]
[1772596780881,1.27414504,1962.1,1961.4,5.58817219]
[1772596788668,2.57468351,1962.1,1961.4,5.58817219]
[1772596790088,1.30053847,1961.9,1961.4,0.0011]
[1772596790415,2.57468351,1962.1,1961.4,5.58817219]
[1772596790797,2.57468351,1962.1,1961.4,6.86274804]
[1772596791117,1.27414504,1962.1,1961.4,6.86274804]
[1772596793205,0.001,1962.3,1961.5,2.00053847]
[1772596793437,1.2750253,1962.3,1961.6,5.58707219]
[1772596793603,1.30053847,1962.1,1961.5,0.7]
[1772596793932,1.27420998,1962.0,1961.4,5.58817219]
[1772596795731,1.27419317,1962.1,1961.4,5.58817219]
[1772596796101,0.001,1962.3,1961.5,6.86160698]
[1772596796102,1.27501518,1962.3,1961.5,6.86160698]
[1772596797636,2.57555365,1962.3,1961.5,5.58707219]
[1772596798209,2.57555365,1962.3,1961.7,5.58707219]
[1772596798404,1.27501518,1962.3,1961.7,5.58707219]
[1772596798941,1.30053847,1962.1,1961.6,0.7]
[1772596799243,1.30053847,1962.1,1961.6,5.58707219]
[1772596799438,1.30053847,1962.1,1961.4,5.58817219]
[1772596800260,1.27420998,1962.0,1961.4,5.58817219]
[1772596800426,1.30053847,1961.9,1961.4,0.0011]
[1772596800753,1.30053847,1961.7,1961.4,0.0011]
[1772596801058,1.30053847,1961.9,1961.4,0.0011]
[1772596801222,3.87528692,1962.0,1961.4,0.0011]
[1772596801223,1.27420998,1962.0,1961.4,5.58817219]
[1772596801428,1.27420998,1962.0,1961.4,6.86276511]
[1772596801660,1.27420998,1962.0,1961.4,5.58817219]
[1772596801859,2.57474845,1962.0,1961.4,0.0011]
[1772596802355,1.30053847,1961.8,1961.4,0.0011]
[1772596802556,1.30053847,1961.7,1961.1,0.0011]
[1772596802758,1.30053847,1961.9,1961.2,5.58707219]
[1772596802923,1.27420998,1962.0,1961.2,5.58707219]
[1772596804358,1.27420998,1962.0,1961.2,6.86175274]
[1772596805531,0.001,1962.3,1961.2,6.86175274]
[1772596805737,1.27412791,1962.2,1961.2,6.86175274]
[1772596806828,5.09725856,1962.3,1961.2,6.86175274]
[1772596807023,5.09725856,1962.3,1961.4,5.58707219]
[1772596807332,1.30053847,1962.0,1961.4,5.58707219]
[1772596807741,5.09725856,1962.3,1961.4,5.58707219]
[1772596807954,1.30053847,1962.2,1961.4,5.58707219]
[1772596808161,5.09725856,1962.3,1961.4,5.58707219]
[1772596808467,6.39779703,1962.3,1961.6,5.58707219]
[1772596810647,1.30053847,1961.9,1961.3,5.58817219]
[1772596811198,1.27433989,1961.8,1961.3,5.58817219]
[1772596812970,1.27408011,1962.2,1961.3,6.86283074]
[1772596813142,0.001,1962.3,1961.8,5.58707219]
[1772596813455,0.1540011,1962.4,1961.8,5.58657219]
[1772596813764,0.1540011,1962.4,1962.0,5.58657219]
[1772596814279,1.42795442,1962.4,1962.0,5.58657219]
[1772596815155,0.1540011,1962.4,1962.0,5.58657219]
[1772596815354,0.1540011,1962.4,1962.0,6.86076691]
[1772596815766,1.42795534,1962.4,1962.0,5.58657219]
[1772596816475,0.10615403,1962.4,1962.1,5.58657219]
[1772596816677,0.8772007,1962.6,1962.1,5.58657219]
[1772596816678,1.30053847,1963.2,1962.1,2.75]
[1772596816979,6.76521875,1963.4,1962.4,5.58657219]
[1772596817475,0.8772007,1963.3,1962.6,5.58657219]
[1772596817648,2.17773917,1963.3,1962.6,5.58657219]
[1772596817854,1.30053847,1962.9,1962.1,8.33657219]
[1772596818069,2.97253847,1962.9,1962.1,8.33657219]
[1772596818276,2.97253847,1962.9,1962.2,5.58657219]
[1772596818277,0.8772007,1962.8,1962.2,5.58657219]
[1772596818464,2.17773917,1962.8,1962.2,5.58657219]
[1772596818648,0.8772007,1962.7,1962.2,5.58657219]
[1772596818851,0.8772007,1962.9,1962.2,5.58657219]
[1772596819053,2.17773917,1963.2,1962.2,5.58657219]
[1772596819383,1.27356087,1963.0,1962.3,5.58657219]
[1772596819557,0.8772007,1962.9,1962.3,5.58657219]
[1772596819872,1.27343152,1963.2,1962.6,5.14797184]
[1772596820264,2.94537486,1963.3,1962.6,5.14797184]
[1772596820482,0.001,1962.9,1962.6,5.14797184]
[1772596820653,1.27329366,1963.5,1962.6,5.3730955]
[1772596820858,1.27329366,1963.5,1962.8,5.3730955]
[1772596821081,3.13185256,1963.5,1962.8,5.3730955]
[1772596821299,5.09294626,1963.7,1963.0,5.3730955]
[1772596821300,5.09250932,1963.7,1963.0,5.3730955]
[1772596821570,1.27304206,1963.8,1963.0,5.3730955]
[1772596822176,2.94499449,1963.9,1963.0,5.3730955]
[1772596822552,1.27299449,1963.9,1963.0,5.3730955]
[1772596823467,1.27278281,1964.2,1963.2,5.3730955]
[1772596825050,3.69685528,1965.0,1963.4,5.3730955]
[1772596825051,5.09009467,1964.8,1963.4,5.3730955]
[1772596825248,5.09009467,1964.8,1963.6,5.3730955]
[1772596825556,5.09009467,1964.8,1963.8,5.3730955]
[1772596827683,5.09009467,1964.8,1963.8,6.6461346]
[1772596827853,5.09009467,1964.8,1963.8,5.3730955]
[1772596828180,5.09009467,1964.8,1964.0,5.3730955]
[1772596828345,1.27239413,1964.8,1964.0,5.3730955]
[1772596829149,1.78185517,1964.8,1964.0,5.3730955]
[1772596829351,1.27258844,1964.5,1963.6,5.3730955]
[1772596829579,1.81565964,1964.3,1963.6,5.3730955]
[1772596829784,1.27258844,1964.5,1963.6,6.64626571]
[1772596830380,1.27258844,1964.5,1963.6,5.3730955]
[1772596830779,0.49755569,1964.4,1963.6,5.3730955]
[1772596831291,0.49755569,1964.4,1963.1,2.81844532]
[1772596831463,1.27284761,1964.1,1963.2,5.3730955]
[1772596832807,1.27284761,1964.1,1963.2,6.64651006]
[1772596833088,1.27284761,1964.1,1963.2,5.3730955]
[1772596833296,6.44480665,1964.1,1963.2,5.3730955]
[1772596834162,1.27370428,1964.4,1963.4,5.3730955]
[1772596835293,8.26132296,1964.4,1963.4,5.3730955]
[1772596835465,8.26132296,1964.4,1963.4,6.64636036]
[1772596835658,8.26132296,1964.4,1963.4,5.3730955]
[1772596836092,8.26132296,1964.4,1963.4,6.64639537]
[1772596836289,8.26132296,1964.4,1963.4,5.3730955]
[1772596836586,8.26132296,1964.4,1963.4,6.64638988]
[1772596836994,5.17195904,1964.2,1963.4,5.3730955]
[1772596837801,1.27284761,1964.1,1963.4,5.3730955]
[1772596837967,8.26046629,1964.1,1963.3,0.7]
[1772596838318,5.17195904,1963.7,1962.7,5.3730955]
[1772596838472,5.17195904,1963.9,1962.4,5.11016372]
[1772596838664,3.08850725,1964.1,1962.5,5.11016372]
[1772596839067,2.74371013,1963.7,1962.3,1.27507927]
[1772596839291,2.74371013,1963.7,1962.3,6.64817477]
[1772596839292,1.67,1963.6,1962.3,6.64817477]
[1772596839697,1.81565964,1963.5,1962.3,6.64817477]
[1772596839899,5.17195904,1963.3,1962.3,6.64817477]
[1772596841099,5.17195904,1963.1,1962.3,0.0011]
[1772596841401,5.17195904,1963.1,1962.3,1.27511027]
[1772596841602,5.17195904,1963.1,1962.3,0.0011]
[1772596841897,6.44551991,1963.0,1962.3,0.0011]
[1772596843800,5.17195904,1962.7,1962.3,0.0011]
[1772596844701,5.17195904,1962.7,1961.7,5.3730955]
[1772596844889,5.17195904,1962.7,1961.5,5.09803041]
[1772596845093,5.17195904,1962.6,1961.4,6.64766869]
[1772596845873,5.17195904,1962.4,1961.6,0.0011]
[1772596846803,1.671,1963.0,1962.2,1.81565964]
[1772596846974,6.44540929,1963.2,1962.2,5.3730955]
[1772596847176,5.17195904,1963.2,1962.2,5.3730955]
[1772596847396,6.44540107,1963.2,1962.2,5.3730955]
[1772596847973,1.27334334,1963.4,1962.3,6.64711068]
[1772596848205,6.40158252,1963.4,1962.3,6.64711068]
[1772596848406,6.40158252,1963.4,1962.3,5.3730955]
[1772596850100,6.40158252,1963.4,1962.2,1.27403772]
[1772596850101,5.12823918,1963.2,1962.2,1.27403772]
[1772596851117,5.12823918,1963.2,1962.1,1.274097]
[1772596851284,5.12823918,1963.0,1962.0,2.82119613]
[1772596852294,6.40186493,1962.9,1962.0,2.82119613]
[1772596853626,6.40186493,1962.9,1962.0,1.27419613]
[1772596854397,6.40186493,1962.9,1961.9,5.09708727]
[1772596855131,5.12823918,1962.9,1962.0,5.33261392]
[1772596855335,2.94753104,1963.1,1962.0,5.33261392]
[1772596855631,5.12823918,1963.2,1962.2,5.33261392]
[1772596856005,6.40167869,1963.2,1962.2,5.33261392]
[1772596856280,5.12823918,1963.2,1962.2,5.33261392]
[1772596856398,6.40167149,1963.2,1962.3,6.6066291]
[1772596857196,6.40167149,1963.2,1962.3,1.27401518]
[1772596857934,6.40167149,1963.2,1962.2,1.27402952]
[1772596858297,6.40167149,1963.2,1962.1,5.09642101]
[1772596858631,6.40167149,1963.2,1962.2,5.33261392]
[1772596859536,6.40167149,1963.2,1962.1,5.09642101]
[1772596859700,6.40167149,1963.2,1962.0,1.27420998]
[1772596860111,1.81565964,1963.0,1962.0,1.27420998]
[1772596860427,5.12823918,1962.7,1962.3,0.0011]
[1772596860731,6.40184539,1963.0,1962.3,0.0011]
[1772596860925,6.40181142,1963.0,1962.3,0.0011]
[1772596861130,5.12823918,1962.9,1961.7,5.33261392]
[1772596861338,5.12823918,1962.6,1961.6,6.60814414]
[1772596862543,6.40212453,1962.5,1961.6,0.0011]
[1772596862711,6.40212453,1962.5,1961.6,1.27555582]
[1772596863114,6.40212453,1962.5,1961.6,6.60816974]
[1772596863115,5.12823918,1962.5,1961.6,6.60816974]
[1772596863640,1.676,1962.6,1961.6,6.60816974]
[1772596864354,5.12823918,1962.8,1961.6,6.60816974]
[1772596864507,1.2736611,1962.9,1961.6,6.60816974]
[1772596864710,5.09431485,1963.0,1961.6,6.60816974]
[1772596865070,5.12823918,1963.0,1961.7,5.33261392]
[1772596865217,5.12823918,1963.0,1961.9,5.33261392]
[1772596865522,5.12823918,1963.0,1962.0,6.88161392]
[1772596866131,5.12823918,1962.9,1961.8,3.87]
[1772596866528,5.12823918,1962.9,1961.8,5.33261392]
[1772596866834,1.81565964,1963.0,1961.9,1.27427493]
[1772596866835,5.12823918,1962.6,1961.9,1.27427493]
[1772596867613,6.40190899,1962.9,1961.9,6.60688885]
[1772596867935,6.40187049,1962.9,1961.9,6.60688885]
[1772596868351,5.12823918,1962.8,1961.9,1.27427493]
[1772596868918,5.12823918,1962.5,1961.6,0.0011]
[1772596869124,5.12823918,1962.5,1961.6,1.27555711]
[1772596871015,1.27395026,1962.4,1961.6,0.0011]
[1772596871332,6.40218944,1962.4,1961.6,0.0011]
[1772596872359,5.12823918,1962.4,1961.6,5.33371392]
[1772596872851,2.95082996,1962.6,1961.8,5.33261392]
[1772596873014,1.677,1962.6,1962.0,5.33261392]
[1772596873442,8.07906462,1962.6,1961.9,1.27427493]
[1772596873846,5.12823918,1962.5,1961.7,1.27436302]
[1772596874031,5.12823918,1962.5,1961.7,1.27546302]
[1772596874342,5.12923918,1962.5,1961.7,1.27546302]
[1772596874644,5.12923918,1962.5,1961.7,6.60807694]
[1772596875363,5.12923918,1962.5,1961.9,5.33261392]
[1772596875364,0.001,1962.5,1961.9,5.33261392]
[1772596876357,6.40312556,1962.5,1961.7,6.69746302]
[1772596876732,6.40312483,1962.5,1961.7,5.14546302]
[1772596877455,0.001,1962.5,1961.8,5.33261392]
[1772596879048,0.001,1962.5,1961.9,1.27427493]
[1772596879345,0.001,1962.5,1961.9,6.64344935]
[1772596880345,5.50135387,1962.9,1962.0,5.5142264]
[1772596880732,5.50135387,1962.9,1962.0,9.3842264]
[1772596880928,5.50135387,1962.9,1962.2,5.51396238]
[1772596881256,6.77499206,1962.9,1962.3,1.27401518]
[1772596881425,5.50135387,1962.9,1962.3,1.27401518]
[1772596883147,5.50135387,1962.9,1962.2,10.60935479]
[1772596883826,5.50135387,1963.3,1962.3,5.51329405]
[1772596884151,5.50135387,1963.3,1962.2,5.09606074]
[1772596884447,5.50135387,1963.3,1962.2,10.60894441]
[1772596884626,6.79978766,1963.3,1962.2,10.60894441]
[1772596884947,5.50135387,1963.0,1962.2,10.60894441]
[1772596885330,6.77494548,1963.0,1962.2,10.60894441]
[1772596885729,5.50135387,1962.8,1962.2,1.27408011]
[1772596887350,6.77509972,1962.8,1962.1,5.09646895]
[1772596887551,5.50135387,1962.6,1962.0,2.83016878]
[1772596888417,5.50135387,1962.6,1961.9,1.27534384]
[1772596889349,6.77523277,1962.6,1961.9,0.0011]
[1772596890059,5.50135387,1962.6,1961.9,5.51068977]
[1772596890414,6.77518477,1962.6,1961.9,5.51068977]
[1772596890651,6.77518477,1962.6,1961.9,0.0011]
[1772596891052,1.29843379,1962.5,1961.9,0.0011]
[1772596891222,5.09604514,1962.7,1961.7,0.0011]
[1772596891223,1.27414504,1962.1,1961.7,0.0011]
[1772596891552,1.27412084,1962.2,1961.7,0.0011]
[1772596892049,6.77547471,1962.2,1961.7,0.0011]
[1772596892829,5.50135387,1962.0,1961.7,0.0011]
[1772596893028,5.50135387,1961.8,1961.5,0.0011]
[1772596893250,5.50135387,1962.4,1961.5,6.80811444]
[1772596893429,5.50135387,1962.3,1961.6,1.27446982]
[1772596895450,6.77543398,1962.2,1961.5,0.0011]
[1772596895949,5.50135387,1962.2,1961.5,0.0011]
[1772596898060,5.50135387,1962.2,1961.5,5.5054547]
[1772596899530,5.50135387,1962.2,1961.6,1.27446982]
[1772596899730,5.50135387,1962.2,1961.6,6.77790271]
[1772596900234,5.50135387,1962.2,1961.6,1.27446982]
[1772596900532,5.50135387,1961.8,1961.5,0.0011]
[1772596900735,5.50135387,1961.8,1961.3,0.0011]
[1772596900736,5.50135387,1961.6,1961.3,0.0011]
[1772596901042,5.50135387,1961.6,1961.0,0.0011]
[1772596901043,5.50135387,1961.5,1961.0,0.0011]
[1772596901461,6.79978766,1961.5,1961.0,0.0011]
[1772596901628,6.79978766,1961.5,1960.7,1.27502224]
[1772596901629,6.79978766,1961.3,1960.6,0.0011]
[1772596902366,5.50135387,1961.0,1960.6,0.0011]
[1772596903547,5.50135387,1960.8,1960.6,0.0011]
[1772596903746,5.50135387,1960.8,1960.0,5.10203397]
[1772596905146,5.50135387,1960.8,1959.6,6.84240767]
[1772596905147,5.50135387,1960.0,1959.0,5.10548466]
[1772596905346,1.351304,1959.3,1959.0,1.27721569]
[1772596905551,5.50135387,1959.6,1959.0,0.0011]
[1772596905739,7.18435387,1959.6,1959.0,0.0011]
[1772596906436,5.50135387,1959.5,1959.0,0.0011]
[1772596907255,2.67520993,1959.9,1959.0,0.0011]
[1772596907469,9.45217688,1959.9,1959.0,0.0011]
[1772596907672,5.50135387,1959.5,1959.0,0.0011]
[1772596907979,5.50135387,1959.4,1959.0,0.0011]
[1772596908867,6.79978766,1959.4,1958.6,0.0011]
[1772596909244,1.684,1959.3,1958.6,1.27751335]
[1772596909573,1.27603103,1959.2,1958.6,0.0011]
[1772596909773,2.96103103,1959.2,1958.6,0.0011]
[1772596910339,8.6453156,1959.2,1958.6,0.0011]
[1772596910539,5.68428457,1959.1,1958.6,0.0011]
[1772596911169,2.96103103,1959.2,1958.6,0.0011]
[1772596911544,6.96044587,1959.0,1958.6,0.0011]
[1772596912468,5.10464522,1959.1,1958.6,0.0011]
[1772596912469,1.27612975,1959.1,1958.6,0.0011]
[1772596912674,6.96041432,1959.1,1958.6,0.0011]
[1772596913452,1.687,1959.1,1958.6,0.0011]
[1772596913859,2.96311179,1959.1,1958.6,0.0011]
[1772596914373,1.27611179,1959.1,1958.6,0.0011]
[1772596914547,8.64735979,1959.2,1958.7,0.0011]
[1772596914746,0.001,1959.3,1958.7,0.0011]
[1772596915243,1.27697027,1959.3,1958.7,0.0011]
[1772596915644,1.27697627,1959.3,1958.7,5.50592731]
[1772596915871,0.001,1959.3,1958.7,5.50592731]
[1772596916299,0.001,1959.3,1958.7,6.78227385]
[1772596916466,0.001,1959.3,1958.7,5.50592731]
[1772596916672,0.001,1959.3,1958.7,6.7822839]
[1772596916968,0.001,1959.3,1958.7,5.50592731]
[1772596917168,5.68528457,1959.3,1958.7,0.0011]
[1772596917770,1.27603103,1959.2,1958.7,0.0011]
[1772596917971,6.9603156,1959.2,1958.7,0.0011]
[1772596918781,5.68428457,1959.0,1958.6,0.0011]
[1772596919848,6.96046445,1959.0,1958.6,0.0011]
[1772596920250,6.79312635,1959.2,1958.6,0.0011]
[1772596920567,1.27603103,1959.2,1958.6,0.0011]
[1772596920770,0.001,1959.3,1958.8,6.8032611]
[1772596921081,1.27577685,1959.6,1958.8,6.8032611]
[1772596921251,1.27577685,1959.6,1958.8,5.50482731]
[1772596921580,1.27575203,1959.7,1958.8,5.50482731]
[1772596921773,1.27575203,1959.7,1958.9,1.27622645]
[1772596922073,5.68428457,1959.4,1958.6,1.27751774]
[1772596922275,5.68428457,1959.2,1958.6,0.0011]
[1772596923250,7.37328457,1959.2,1958.6,0.0011]
[1772596923978,6.96038073,1959.1,1958.6,0.0011]
[1772596924964,12.47723245,1959.3,1958.6,0.0011]
[1772596925161,5.68428457,1959.3,1958.6,0.0011]
[1772596925481,1.27594734,1959.4,1958.6,0.0011]
[1772596925981,1.27594734,1959.4,1958.6,5.49742672]
[1772596926561,6.95992494,1959.8,1958.8,5.49632672]
[1772596926868,5.68428457,1959.6,1958.7,0.0011]
[1772596927060,0.001,1959.3,1958.7,5.49033264]
[1772596927290,1.27561508,1959.9,1959.0,5.48923264]
[1772596927474,1.2755555,1960.0,1959.1,1.29843379]
[1772596927673,1.2755555,1960.0,1959.1,6.78766643]
[1772596928193,1.2755555,1960.0,1959.2,1.27603103]
[1772596929961,6.95984007,1960.0,1959.2,1.27603103]
[1772596930484,6.95984007,1960.0,1959.1,6.765278]
[1772596931188,6.95984007,1960.0,1959.0,1.27611484]
[1772596931387,5.68428457,1959.8,1958.9,1.27617926]
[1772596931900,5.68428457,1959.6,1958.8,5.46107104]
[1772596932062,5.68428457,1959.6,1958.7,0.0011]
[1772596932392,9.94337114,1959.5,1958.7,0.0011]
[1772596932598,6.96012024,1959.5,1958.7,0.0011]
[1772596933098,6.95997228,1959.8,1958.9,5.44720176]
[1772596933384,2.98634583,1959.7,1958.9,5.44720176]
[1772596934169,2.98634583,1959.6,1958.9,5.44720176]
[1772596934387,2.98634583,1959.6,1959.0,1.2761613]
[1772596934388,1.27577056,1959.6,1959.0,1.2761613]
[1772596934685,1.27573255,1959.7,1959.0,1.2761613]
[1772596934989,2.98941663,1959.6,1959.0,1.2761613]
[1772596935369,2.98941663,1959.5,1959.0,1.2761613]
[1772596935566,2.98941663,1959.4,1959.0,1.2761613]
[1772596935893,9.34139729,1959.7,1958.8,5.14623587]
[1772596936077,9.34139729,1959.7,1958.7,5.10644532]
[1772596936078,5.68428457,1959.5,1958.7,1.27744833]
[1772596936310,4.26941384,1959.4,1958.7,0.0011]
[1772596936464,2.99349445,1959.3,1958.7,5.42778523]
[1772596936791,1.275786,1959.6,1958.8,6.72511902]
[1772596936976,2.99351201,1959.5,1958.8,6.72511902]
[1772596937365,2.99351201,1959.5,1958.8,5.42668523]
[1772596938381,2.99351201,1959.5,1958.9,1.27622645]
[1772596938580,4.26935242,1959.5,1958.9,1.27622645]
[1772596938898,1.27584041,1959.5,1958.8,8.26394526]
[1772596939201,1.27684041,1959.5,1958.8,8.26394526]
[1772596939879,2.99331988,1959.4,1958.8,2.8372825]
[1772596940283,6.44543716,1959.5,1958.8,2.8372825]
[1772596940478,1.2759659,1959.3,1958.8,1.561]
[1772596940801,6.44456265,1959.3,1958.8,1.561]
[1772596940990,2.99522204,1959.2,1958.8,1.561]
[1772596941194,6.44456265,1959.3,1958.8,1.561]
[1772596941385,2.99550308,1959.2,1958.8,1.561]
[1772596942094,5.16959675,1959.5,1958.8,1.27626926]
[1772596943007,6.44543265,1959.5,1958.8,1.27626926]
[1772596943204,5.16959675,1959.5,1958.8,1.27626926]
[1772596943519,6.44543361,1959.5,1958.8,1.27626926]
[1772596943817,5.16959675,1959.5,1958.8,3.74610469]
[1772596944010,5.16959675,1959.5,1958.8,1.27626926]
[1772596944173,6.44543324,1959.5,1958.8,1.27626926]
[1772596945113,6.44543931,1959.5,1958.8,1.27626926]
[1772596945411,6.44543931,1959.5,1958.7,1.27740571]
[1772596946114,5.16959675,1959.5,1958.7,1.27740571]
[1772596946299,5.16959675,1959.5,1958.8,2.45656145]
[1772596946300,0.001,1959.5,1958.8,2.45656145]
[1772596946979,0.001,1959.5,1958.9,1.27622645]
[1772596947398,5.16959675,1959.5,1958.7,1.27740135]
[1772596947607,5.16959675,1959.5,1958.7,5.14740135]
[1772596949085,6.44449753,1959.4,1958.7,1.27745382]
[1772596949282,6.44449753,1959.4,1958.7,0.0011]
[1772596950215,6.44449753,1959.4,1958.7,1.27745672]
[1772596950399,0.001,1959.5,1958.7,3.71634999]
[1772596950605,0.001,1959.5,1958.9,2.43889327]
[1772596950806,0.001,1959.5,1958.9,2.43999327]
[1772596951006,0.001,1959.4,1958.9,2.43999327]
[1772596951211,0.001,1959.4,1959.0,1.2761613]
[1772596952625,5.16959675,1959.4,1958.9,1.27732258]
[1772596952834,5.16959675,1959.4,1958.9,0.0011]
[1772596952993,5.16959675,1959.4,1958.9,1.27731691]
[1772596953419,1.27690235,1959.4,1958.9,0.0011]
[1772596954426,0.001,1959.4,1958.9,0.0011]
[1772596954634,0.001,1959.4,1958.9,2.42237959]
[1772596955411,0.001,1959.4,1959.0,1.2761613]
[1772596957126,7.5722285,1960.1,1959.2,2.40713587]
[1772596957312,3.00659275,1960.0,1959.2,2.40713587]
[1772596957496,3.00659275,1960.0,1959.3,3.68310177]
[1772596957694,5.16859675,1960.0,1959.3,1.2759659]
[1772596958210,5.16859675,1960.0,1959.3,3.67878305]
[1772596958403,6.44411402,1960.0,1959.3,3.67878305]
[1772596958605,5.16859675,1960.0,1959.3,3.67878305]
[1772596959118,6.44411183,1960.0,1959.3,3.67878305]
[1772596959315,6.44411183,1960.0,1959.2,1.27598747]
[1772596960710,6.44411183,1960.0,1959.1,1.561]
[1772596960909,5.16859675,1959.8,1959.1,2.83708381]
[1772596961108,5.16859675,1959.8,1959.1,2.83707925]
[1772596961343,5.16859675,1959.8,1959.1,1.561]
[1772596961511,6.44430221,1959.7,1959.1,2.83708568]
[1772596962615,6.44430221,1959.7,1959.1,1.27608568]
[1772596963135,5.16959675,1959.7,1959.1,1.27608568]
[1772596964618,0.001,1959.7,1959.1,1.27608568]
[1772596965625,0.001,1959.7,1959.1,5.14608568]
[1772596965827,1.82391218,1960.5,1959.1,5.14608568]
[1772596965828,5.16859675,1960.3,1959.2,2.33816017]
[1772596966014,5.16859675,1960.3,1959.5,2.32550918]
[1772596966216,5.16859675,1960.3,1959.7,1.27570546]
[1772596966710,6.44391702,1960.3,1959.7,1.27570546]
[1772596967312,6.44391702,1960.3,1959.6,2.83772643]
[1772596969944,6.44394218,1960.3,1959.6,2.83772643]
[1772596970445,6.50610781,1960.8,1959.7,2.26858716]
[1772596971628,6.50610781,1960.8,1959.6,3.53227126]
[1772596971826,6.50610781,1960.8,1959.7,1.563]
[1772596971827,5.23111801,1960.7,1959.7,1.563]
[1772596972537,5.23111801,1960.5,1959.7,1.563]
[1772596972745,5.23111801,1960.5,1959.7,2.83870521]
[1772596973967,5.23111801,1960.5,1959.7,1.563]
[1772596974251,5.23111801,1960.4,1959.2,3.49697117]
[1772596974548,5.23111801,1960.1,1959.2,3.49697117]
[1772596974757,5.23111801,1960.1,1959.1,2.83906457]
[1772596975248,5.23111801,1960.1,1959.5,0.0011]
[1772596976622,1.2755102,1960.0,1959.5,0.0011]
[1772596976923,5.23111801,1959.9,1959.5,0.0011]
[1772596977532,5.23111801,1959.8,1959.0,0.0011]
[1772596978250,5.23111801,1959.8,1959.0,1.27725499]
[1772596979526,1.27570546,1959.7,1959.0,0.0011]
[1772596980023,6.50682347,1959.7,1959.0,0.0011]
[1772596980753,6.50682347,1959.7,1957.0,0.0011]
[1772596980754,0.68112293,1958.9,1957.0,0.0011]
[1772596980957,5.23111801,1958.2,1957.1,1.27740023]
[1772596981252,5.23111801,1958.2,1957.1,2.84040023]